bitfinex/quotes_ETHUSD_20250404
["timestamp","ask_amount","ask_price","bid_price","bid_amount"]
[1743766541137,0.05,1775.9,1775.7,5.63146]
[1743766541505,0.05,1775.9,1775.8,5.68756563]
[1743766541737,0.05,1775.9,1775.8,7.18736]
[1743766542434,1e-05,1775.9,1775.8,30.091742]
[1743766542640,1e-05,1775.9,1775.8,30.641742]
[1743766542839,0.05,1776.9,1776.5,1.5706]
[1743766543042,0.05,1776.9,1776.8,5.62809]
[1743766543216,0.05,1776.9,1776.8,5.68435773]
[1743766543417,0.05,1776.9,1776.6,30.95971]
[1743766543622,3.93966,1776.8,1776.6,25.331]
[1743766543840,4.23254738,1776.8,1776.6,25.331]
[1743766544341,7.9608572,1776.8,1776.6,25.331]
[1743766544664,7.66818982,1776.7,1776.6,25.331]
[1743766544808,9.31868982,1776.7,1776.6,25.331]
[1743766545008,1.94286483,1776.7,1776.6,25.331]
[1743766545318,0.29236483,1776.7,1776.6,25.331]
[1743766545531,3.93988,1776.7,1776.6,25.331]
[1743766545710,0.29236483,1776.7,1776.6,25.331]
[1743766546104,3.77830982,1776.9,1776.6,30.95972]
[1743766546305,0.29288738,1776.8,1776.6,30.95949]
[1743766546504,0.29288738,1776.8,1776.7,8.724359]
[1743766547132,0.05,1776.9,1776.8,5.62809]
[1743766547333,0.05,1776.9,1776.8,10.13239]
[1743766547668,0.05,1776.9,1776.8,7.13239]
[1743766548241,0.05,1776.9,1776.8,5.62809]
[1743766548447,0.05,1776.9,1776.8,7.0633349]
[1743766548654,0.31918042,1776.9,1776.7,8.724309]
[1743766548858,0.05,1776.9,1776.6,25.331]
[1743766549007,0.26865794,1776.8,1776.6,25.331]
[1743766549214,1.5149,1776.7,1776.6,25.331]
[1743766549569,5.72291541,1776.7,1776.6,25.331]
[1743766549931,6.27291541,1776.7,1776.6,25.331]
[1743766550230,3.94071,1776.4,1775.9,36.58168]
[1743766550431,3.72830982,1776.3,1776.0,9.34502478]
[1743766550611,14.89022449,1776.3,1775.9,30.95075]
[1743766551010,1.6503,1776.2,1775.9,30.95075]
[1743766551348,4.20629894,1776.1,1775.9,25.32]
[1743766551662,0.26499894,1776.1,1775.9,25.32]
[1743766552008,3.72830982,1776.0,1775.9,25.32]
[1743766552215,3.99278582,1776.0,1775.9,25.32]
[1743766553236,11.48422582,1776.0,1775.9,25.32]
[1743766553617,13.12732582,1776.0,1775.9,25.32]
[1743766553824,3.0,1775.9,1775.1,25.32]
[1743766554029,7.67062982,1775.7,1775.2,8.16516]
[1743766554209,7.67048982,1775.7,1775.3,5.63271]
[1743766554445,4.20472361,1775.6,1775.2,8.16516]
[1743766554649,3.72830982,1775.3,1775.2,5.6331]
[1743766554811,3.26238361,1775.6,1775.1,25.32]
[1743766554812,1.6431,1775.5,1775.1,25.32]
[1743766555011,0.25916952,1775.3,1775.2,5.63316]
[1743766555257,1.6431,1775.7,1775.4,5.63241]
[1743766555414,0.2608137,1775.3,1775.1,25.32]
[1743766555618,3.94311,1775.3,1775.1,25.32]
[1743766555936,3.94356,1775.1,1774.6,5.63505]
[1743766556140,3.72830982,1774.9,1774.6,6.198555]
[1743766556340,3.72830982,1775.2,1774.7,5.69108893]
[1743766556511,5.37140982,1775.5,1775.1,5.63348]
[1743766556851,5.37140982,1775.5,1775.0,5.63373]
[1743766557028,5.37140982,1775.5,1775.1,5.63331]
[1743766557228,5.37140982,1775.5,1775.1,1.126696]
[1743766557553,4.8804132,1775.7,1775.4,5.63253]
[1743766557714,5.34420982,1776.0,1775.5,5.68845486]
[1743766557913,3.0,1775.9,1775.5,5.63195]
[1743766558149,5.55736,1776.0,1775.6,5.63189]
[1743766558313,5.34420982,1776.0,1775.5,5.63195]
[1743766558516,11.12129776,1775.9,1775.5,3.814187]
[1743766558710,7.17942776,1775.9,1775.6,0.05631282]
[1743766559023,3.23764776,1775.9,1775.6,0.05631282]
[1743766559524,0.23764776,1775.9,1775.8,5.63126]
[1743766559725,0.23764776,1775.9,1775.5,9.446117]
[1743766559726,3.72830982,1775.9,1775.5,9.446117]
[1743766560048,5.70410052,1775.8,1775.5,3.814187]
[1743766560219,6.94225,1775.7,1775.4,25.323]
[1743766560420,4.76220052,1775.8,1775.4,25.323]
[1743766560624,0.21711491,1775.6,1775.4,30.95542]
[1743766560812,8.48567,1775.8,1775.5,0.05631533]
[1743766561020,7.67082982,1775.6,1775.4,25.273]
[1743766561461,7.71016435,1775.5,1775.4,25.273]
[1743766561660,8.58452755,1775.5,1775.4,25.273]
[1743766561828,3.48212755,1775.5,1775.4,25.273]
[1743766562019,6.48212755,1775.5,1775.4,25.273]
[1743766562347,10.97467755,1775.5,1775.4,25.273]
[1743766562659,1.6035,1775.4,1774.8,1.5593]
[1743766562840,0.21761435,1775.5,1775.3,5.63285]
[1743766563146,3.72830982,1775.6,1775.4,5.63251]
[1743766563369,3.0,1775.6,1775.4,5.63251]
[1743766563555,10.67076982,1775.6,1775.3,1.1266]
[1743766563717,10.67076982,1775.6,1775.3,6.75916]
[1743766563718,6.72830982,1775.6,1775.3,6.75916]
[1743766564051,1.5432,1776.5,1775.5,1.5471]
[1743766564215,3.72830982,1776.3,1775.6,25.327]
[1743766564416,3.94107,1776.2,1775.7,5.63158]
[1743766564653,3.72830982,1776.0,1775.7,5.63158]
[1743766565021,3.72830982,1776.0,1775.7,5.6314]
[1743766565022,5.26170982,1776.0,1775.7,5.6314]
[1743766565218,3.72830982,1776.0,1775.8,0.61944818]
[1743766565417,3.72830982,1776.0,1775.8,0.56314]
[1743766565936,3.72830982,1776.0,1775.7,5.63143]
[1743766566252,3.72830982,1776.0,1775.8,5.63106]
[1743766566553,3.72830982,1776.0,1775.6,25.327]
[1743766566740,7.67040982,1775.7,1775.6,25.327]
[1743766567458,1.5598,1775.8,1775.6,25.327]
[1743766567686,3.72830982,1776.0,1775.7,2.5327]
[1743766567955,3.72830982,1776.0,1775.7,8.16411]
[1743766568173,7.66976982,1776.0,1775.7,2.5327]
[1743766568521,3.94174,1775.9,1775.6,25.327]
[1743766568720,3.72830982,1775.7,1775.6,25.327]
[1743766568917,7.67040982,1775.7,1775.6,25.327]
[1743766569528,3.72830982,1775.7,1775.6,25.327]
[1743766570053,9.23020982,1775.7,1775.6,25.327]
[1743766570418,9.78020982,1775.7,1775.6,25.327]
[1743766571462,5.28810982,1775.7,1775.6,25.327]
[1743766571660,3.72830982,1775.7,1775.6,33.49159]
[1743766571992,6.934,1775.9,1775.6,33.49159]
[1743766572155,6.934,1775.9,1775.6,39.12337]
[1743766572332,3.72830982,1776.0,1775.9,5.63094]
[1743766572529,3.72830982,1776.0,1775.8,5.63116]
[1743766572730,3.72830982,1776.0,1775.7,5.63153]
[1743766572939,3.94174,1775.9,1775.6,27.8597]
[1743766573138,11.61137982,1776.0,1775.6,30.95889]
[1743766573662,3.72830982,1775.7,1775.6,25.327]
[1743766574048,3.94601047,1775.7,1775.6,30.95889]
[1743766574228,0.21770065,1775.7,1775.6,30.95889]
[1743766574433,0.21770065,1775.7,1775.6,34.617989]
[1743766574665,10.66976982,1776.0,1775.6,40.249879]
[1743766574865,0.21709326,1775.7,1775.6,34.617989]
[1743766575092,3.94540308,1775.7,1775.6,25.327]
[1743766575385,3.94619488,1775.7,1775.6,25.327]
[1743766575735,0.21788506,1775.7,1775.6,30.95889]
[1743766575941,3.94199,1775.8,1775.6,25.327]
[1743766576142,0.21724793,1775.7,1775.6,25.327]
[1743766576343,0.21724793,1775.7,1775.6,33.49159]
[1743766576545,3.72830982,1775.7,1775.6,25.327]
[1743766576738,3.72830982,1775.7,1775.2,7.20998]
[1743766576739,3.92429406,1775.7,1775.2,1.5769]
[1743766576971,3.72830982,1775.3,1775.0,5.63356]
[1743766577172,0.19314046,1775.2,1775.1,5.63327]
[1743766577547,3.72830982,1775.3,1775.2,5.63316]
[1743766577748,3.91801087,1775.3,1775.0,5.63365]
[1743766577988,3.91801087,1775.3,1774.9,30.96087]
[1743766578272,7.86111087,1775.3,1774.9,25.327]
[1743766578771,8.27275338,1775.3,1774.9,25.327]
[1743766578942,4.32965338,1775.3,1774.9,25.327]
[1743766579345,3.72830982,1775.0,1774.9,25.327]
[1743766579544,3.92057344,1775.0,1774.9,25.327]
[1743766580475,16.28974664,1775.0,1774.9,25.327]
[1743766580854,16.28974664,1775.0,1774.2,1.6274]
[1743766580855,3.94468,1774.6,1774.2,26.9574]
[1743766581050,3.94468,1774.6,1774.2,25.33]
[1743766581051,3.72830982,1774.5,1774.2,25.33]
[1743766581261,7.86730193,1774.5,1774.2,25.33]
[1743766581674,3.94499,1774.4,1774.2,25.33]
[1743766581848,3.94521,1774.3,1774.2,25.33]
[1743766582044,0.19301426,1774.3,1774.2,25.33]
[1743766582266,0.19301426,1774.3,1774.2,35.10314]
[1743766582467,3.41400681,1774.8,1774.2,35.10287]
[1743766582648,3.72830982,1774.6,1774.2,26.9288]
[1743766582845,3.9449,1774.5,1774.2,26.9288]
[1743766583079,0.19383642,1774.5,1774.3,0.05635468]
[1743766583578,0.19383642,1774.5,1774.2,25.33]
[1743766583794,3.94544,1774.2,1774.1,0.05]
[1743766583969,7.13770472,1774.2,1774.1,0.05]
[1743766584167,0.19226472,1774.2,1774.1,0.05]
[1743766584583,3.19226472,1774.2,1774.1,0.05]
[1743766584785,10.86601454,1774.2,1774.1,0.05]
[1743766584985,12.46991454,1774.2,1774.1,0.05]
[1743766585288,13.01991454,1774.2,1774.1,0.05]
[1743766586188,3.0,1773.6,1773.1,0.05]
[1743766586385,7.67596982,1773.2,1773.1,0.05]
[1743766586680,12.36977495,1773.2,1773.1,0.05]
[1743766586858,12.91977495,1773.2,1773.1,0.05]
[1743766587262,3.94855,1772.8,1772.7,25.34]
[1743766587486,3.72830982,1773.0,1772.7,25.34]
[1743766587659,0.18220268,1772.8,1772.7,26.15913649]
[1743766587870,3.2645132,1773.1,1772.9,5.64047]
[1743766588164,4.8066132,1773.5,1773.0,11.28012]
[1743766588375,0.55,1773.9,1773.1,1.128012]
[1743766588668,3.0,1773.7,1773.2,1.6615]
[1743766588871,4.5522,1773.7,1773.2,1.6615]
[1743766589079,0.18917945,1773.6,1773.3,5.6392]
[1743766589460,0.18917945,1773.6,1773.2,7.30101]
[1743766589461,0.18917945,1773.6,1773.2,1.6615]
[1743766589654,0.18917945,1773.6,1773.4,0.05637956]
[1743766590090,0.18917945,1773.6,1773.2,1.6615]
[1743766590396,0.18917945,1773.6,1773.0,7.29393]
[1743766590559,1.5848,1773.5,1773.0,2.947422]
[1743766590761,7.13297877,1773.4,1772.8,5.64047]
[1743766591055,0.55,1773.3,1772.8,5.64077]
[1743766591285,6.45026197,1773.4,1772.9,0.05639643]
[1743766591486,0.17946573,1773.2,1772.8,5.64049]
[1743766591687,6.2645132,1773.4,1772.7,31.80020649]
[1743766591688,4.12756048,1773.3,1772.7,31.80020649]
[1743766591987,0.17719674,1773.2,1772.8,5.64066]
[1743766592167,0.55,1773.3,1772.8,5.64066]
[1743766592372,3.2645132,1773.4,1773.2,5.63925]
[1743766592565,5.51389,1773.8,1773.2,0.05638675]
[1743766592765,4.8320132,1773.8,1773.2,0.05638439]
[1743766592986,4.8320132,1773.8,1773.4,5.63876]
[1743766593357,4.8320132,1773.8,1772.9,1.5979]
[1743766593461,4.8320132,1773.8,1773.1,5.63957]
[1743766593462,4.49691,1773.6,1773.1,5.63957]
[1743766593807,5.48334,1773.3,1772.8,5.64072]
[1743766593989,1.5358,1773.3,1773.0,5.64011]
[1743766594190,1.5358,1773.3,1772.9,5.64045]
[1743766594393,1.5358,1773.3,1773.0,5.63995]
[1743766594596,1.5358,1773.3,1772.8,5.64058]
[1743766594814,3.94797,1773.1,1772.7,25.34]
[1743766595019,1.6222,1772.8,1772.7,25.34]
[1743766595169,2.1722,1772.8,1772.7,25.34]
[1743766595677,6.94902,1772.6,1772.1,5.69287]
[1743766595875,6.72830982,1772.4,1772.1,0.05]
[1743766596079,0.55,1772.5,1772.3,5.64213]
[1743766596281,3.2645132,1772.8,1772.7,5.64111]
[1743766596586,6.94873,1772.8,1772.4,5.64183]
[1743766596794,0.55,1772.7,1772.4,5.64183]
[1743766597321,4.6122,1772.6,1772.3,5.64232]
[1743766597505,1.6122,1772.6,1772.4,5.64202]
[1743766597819,3.2645132,1772.8,1772.7,5.64111]
[1743766598112,1.6352,1773.0,1772.8,5.64058]
[1743766598314,0.55,1772.9,1772.5,1.5615]
[1743766598464,8.56,1773.2,1772.9,5.64033]
[1743766598818,3.2645132,1773.1,1772.5,1.5615]
[1743766598970,3.0,1773.0,1772.6,5.64128]
[1743766599171,3.2645132,1773.1,1772.7,5.64111]
[1743766599365,5.5129,1773.5,1773.2,5.6394]
[1743766599570,5.5129,1773.5,1772.8,26.9322]
[1743766599820,3.94745,1773.3,1772.9,5.64021]
[1743766600119,6.94733,1773.4,1773.0,5.63986]
[1743766600319,3.0,1773.2,1772.9,5.64044]
[1743766600945,7.4973,1773.4,1772.8,25.361]
[1743766601075,4.8304132,1773.5,1773.1,5.63969]
[1743766601272,3.0,1773.4,1773.2,5.63938]
[1743766601473,4.8304132,1773.5,1773.3,5.63908]
[1743766601672,3.0,1773.7,1773.5,5.63852]
[1743766601920,3.0,1773.7,1773.3,5.63917]
[1743766602222,3.9474,1773.4,1773.0,5.64012]
[1743766602377,3.0,1773.4,1773.1,5.63971]
[1743766602770,3.0,1773.2,1772.9,5.64046]
[1743766602975,6.94776,1773.2,1772.8,31.00173]
[1743766603418,0.15928773,1773.1,1772.8,31.00165]
[1743766603723,3.55,1773.1,1772.8,25.361]
[1743766603930,3.94888,1772.7,1772.2,1.5075]
[1743766604103,3.0,1772.6,1772.2,9.84197]
[1743766604315,1.5739,1772.4,1772.1,25.412]
[1743766604615,7.07588622,1772.3,1772.1,25.412]
[1743766604771,3.14988622,1772.3,1772.1,25.412]
[1743766604978,7.09963622,1772.3,1772.1,25.412]
[1743766605175,4.49989,1772.2,1772.1,25.412]
[1743766605573,4.64964881,1772.2,1772.1,25.412]
[1743766605774,7.64964881,1772.2,1772.1,25.412]
[1743766606172,7.09964881,1772.2,1772.1,25.412]
[1743766606503,12.49046201,1772.2,1772.1,0.05]
[1743766606688,13.00321154,1772.2,1772.1,0.05]
[1743766607417,19.90321154,1772.2,1772.1,0.05]
[1743766608823,15.52720778,1772.2,1772.1,0.05]
[1743766608990,14.96520778,1772.2,1772.1,0.05]
[1743766609189,12.02709778,1772.2,1772.1,0.05]
[1743766609525,19.46109778,1772.2,1772.1,0.05]
[1743766610829,3.95145,1771.5,1771.2,25.364]
[1743766611125,7.09476775,1771.4,1771.2,25.364]
[1743766611273,3.95189,1771.3,1771.2,25.364]
[1743766611476,6.95189,1771.3,1771.2,25.364]
[1743766611718,7.09441187,1771.3,1771.2,25.364]
[1743766611876,3.14252187,1771.3,1771.2,25.364]
[1743766612355,7.09441187,1771.3,1771.2,25.364]
[1743766612647,3.14252187,1771.3,1771.2,25.364]
[1743766612955,3.14252187,1771.3,1771.1,0.05]
[1743766612956,7.64441187,1771.3,1771.1,0.05]
[1743766613252,12.4017332,1771.2,1771.1,0.05]
[1743766613418,12.54344517,1771.2,1771.1,0.05]
[1743766613615,4.50346,1770.6,1770.5,25.374]
[1743766613828,4.64501817,1770.6,1770.5,25.374]
[1743766614345,8.32703716,1770.6,1770.5,25.374]
[1743766614560,6.9539,1770.4,1770.3,0.55]
[1743766614946,3.13801517,1770.4,1770.3,0.55]
[1743766615303,3.68801517,1770.4,1770.3,0.55]
[1743766616553,3.13801517,1770.4,1770.3,0.55]
[1743766616713,3.68801517,1770.4,1770.3,0.55]
[1743766617134,10.90642837,1770.4,1770.3,0.55]
[1743766617449,3.40252837,1770.4,1770.3,0.55]
[1743766617910,3.95252837,1770.4,1770.3,0.55]
[1743766618460,3.40252837,1770.4,1770.3,0.55]
[1743766618621,0.13801517,1770.4,1770.3,7.71816]
[1743766618953,3.95376,1770.5,1770.3,0.55]
[1743766619155,4.63856748,1770.4,1770.3,0.55]
[1743766619306,6.29666748,1770.4,1770.3,0.55]
[1743766619654,9.29666748,1770.4,1770.3,0.55]
[1743766619869,12.56118068,1770.4,1770.3,0.55]
[1743766620072,8.60728068,1770.4,1770.3,0.55]
[1743766620276,12.56118068,1770.4,1770.3,0.55]
[1743766620636,16.2894905,1770.4,1770.3,0.55]
[1743766621023,16.37637,1770.4,1770.3,0.55]
[1743766621459,16.2894905,1770.4,1770.3,0.55]
[1743766622441,12.3355905,1770.4,1770.3,0.55]
[1743766622645,12.56118068,1770.4,1770.3,0.55]
[1743766624127,19.6744905,1770.4,1770.3,0.55]
[1743766624325,9.13175,1770.2,1770.1,0.05]
[1743766624762,9.26062465,1770.2,1770.1,0.05]
[1743766625243,12.52513785,1770.2,1770.1,0.05]
[1743766625426,3.39338785,1770.2,1770.1,0.05]
[1743766625633,0.12887465,1770.2,1770.1,6.269343]
[1743766625831,3.2645132,1770.4,1770.1,11.918733]
[1743766626082,7.2173232,1770.9,1770.3,1.5617]
[1743766626381,0.42998215,1770.8,1770.5,5.64794]
[1743766626536,3.0,1770.8,1770.5,5.64794]
[1743766626730,3.2645132,1770.9,1770.5,5.64794]
[1743766626937,3.0,1770.8,1770.5,5.64794]
[1743766627404,3.0,1770.8,1770.3,1.5617]
[1743766627549,6.95435,1770.2,1770.1,0.05]
[1743766627733,10.7688632,1770.2,1770.1,0.05]
[1743766627931,3.0,1770.2,1770.1,0.05]
[1743766628763,3.0,1770.4,1770.1,0.05]
[1743766628972,3.2645132,1770.5,1770.1,7.26335]
[1743766629275,3.2645132,1770.5,1770.1,5.69938]
[1743766629484,7.2182032,1770.5,1770.1,5.69938]
[1743766629882,3.2645132,1770.5,1770.1,5.69923]
[1743766630173,3.2645132,1770.5,1770.1,5.69928]
[1743766630413,3.95416,1770.3,1770.1,0.05]
[1743766630594,0.55,1770.4,1770.1,0.05]
[1743766630733,3.2645132,1770.5,1770.3,5.64856]
[1743766631051,6.2645132,1770.5,1770.2,5.64895]
[1743766631248,6.2645132,1770.5,1770.3,5.64867]
[1743766631453,3.2645132,1770.5,1770.3,5.64859]
[1743766631645,3.2645132,1770.5,1770.2,5.64893]
[1743766631945,11.6924132,1771.1,1770.7,5.64724]
[1743766632572,3.0,1771.0,1770.7,5.64724]
[1743766632734,3.0,1771.0,1770.3,7.18092]
[1743766632935,3.95356,1770.6,1770.1,7.26505]
[1743766633176,4.583,1770.7,1770.1,1.6157]
[1743766633384,3.0,1770.9,1770.2,0.05648552]
[1743766633530,0.55,1770.5,1770.1,1.6157]
[1743766633738,6.777,1770.6,1770.2,5.64889]
[1743766633935,0.12259267,1770.4,1770.1,12.91427]
[1743766634170,3.0,1770.5,1770.1,7.26492]
[1743766634365,0.12330824,1770.3,1770.1,1.6157]
[1743766634638,9.777,1770.6,1770.5,5.64812]
[1743766634839,3.0,1770.6,1770.2,5.64906]
[1743766635081,3.0,1770.6,1770.2,11.35446303]
[1743766635237,3.0,1770.6,1770.2,5.64892]
[1743766635444,0.55,1771.3,1770.3,7.28386]
[1743766635638,3.2645132,1771.4,1771.1,5.64613]
[1743766635869,3.2645132,1771.4,1771.0,11.29269]
[1743766636140,3.2645132,1771.4,1771.1,0.0564601]
[1743766636500,3.2645132,1771.4,1770.9,7.28192]
[1743766636642,7.2161932,1771.4,1770.9,1.6351]
[1743766636993,3.2645132,1771.4,1771.0,5.64652]
[1743766637276,11.15605306,1771.8,1771.2,5.64565]
[1743766637277,3.2645132,1771.8,1771.2,5.64565]
[1743766637490,10.0455132,1771.8,1770.9,4.903703]
[1743766637771,3.0,1771.7,1770.9,10.550273]
[1743766638068,4.50123,1771.6,1770.9,4.903703]
[1743766638237,3.95154,1771.5,1771.0,11.7830803]
[1743766638437,10.0455132,1771.8,1771.0,0.4903703]
[1743766638639,10.0455132,1771.8,1771.3,5.64543]
[1743766638864,10.0455132,1771.8,1771.4,5.6452]
[1743766639068,3.2645132,1771.8,1771.4,5.6452]
[1743766639261,3.2645132,1771.8,1771.4,7.84682]
[1743766639766,12.36955,1772.2,1771.7,5.64401]
[1743766640099,3.95041,1772.0,1771.5,5.64476]
[1743766640285,3.0,1772.1,1771.5,5.7013732]
[1743766640484,8.4195,1772.2,1771.5,5.7013732]
[1743766640485,1.6325,1772.2,1772.0,5.64328]
[1743766640687,10.0425132,1772.3,1772.0,5.64308]
[1743766640874,3.2645132,1772.3,1772.2,5.6427]
[1743766641199,0.05,1772.9,1772.4,5.64206]
[1743766641200,3.2645132,1772.8,1772.4,5.64206]
[1743766641494,3.2645132,1772.8,1772.0,0.564328]
[1743766641495,3.2645132,1772.8,1772.3,1.5171]
[1743766641695,3.2645132,1772.8,1772.4,5.64192]
[1743766641862,3.2645132,1772.8,1772.3,7.15947]
[1743766642066,3.94894,1772.7,1772.3,1.5171]
[1743766642261,7.8983,1772.6,1772.0,7.724748]
[1743766642601,0.55,1772.7,1772.0,1.5171]
[1743766642780,4.49982,1772.3,1771.7,32.6934]
[1743766643100,3.95066,1771.9,1771.7,25.396]
[1743766643301,3.95167,1771.4,1771.3,10.0]
[1743766643479,3.2645132,1771.7,1770.8,32.69055]
[1743766643674,5.1232,1771.8,1770.8,32.69055]
[1743766643675,3.95214,1771.2,1770.8,30.877187]
[1743766643882,3.55,1771.5,1770.8,25.39]
[1743766643883,3.95235,1771.1,1770.8,25.39]
[1743766644085,3.95266,1771.0,1770.8,25.39]
[1743766644284,7.90539,1771.0,1770.8,25.39]
[1743766644487,3.2645132,1771.0,1770.8,5.64716]
[1743766644697,0.55,1771.4,1771.0,5.64636]
[1743766644871,3.95179,1771.4,1771.0,1.6185]
[1743766645074,13.73853,1771.5,1771.0,1.6185]
[1743766645375,3.95169,1771.4,1771.0,1.6185]
[1743766645908,3.95194,1771.3,1771.0,1.6185]
[1743766646206,3.9523,1771.2,1770.7,1.5953]
[1743766646419,3.95238,1771.1,1770.7,1.5953]
[1743766646625,7.90579,1770.9,1770.4,1.5094]
[1743766646922,7.90577,1770.9,1770.4,1.5094]
[1743766647105,3.95281,1770.9,1770.4,7.15776]
[1743766647306,6.77,1771.0,1770.8,5.647]
[1743766647618,3.2645132,1771.1,1770.6,5.6476]
[1743766647821,3.0,1771.2,1770.4,2.790055]
[1743766647983,1.6579,1771.7,1770.6,5.25050982]
[1743766648189,5.60903,1771.7,1771.1,5.64599]
[1743766648390,3.95124,1771.6,1771.1,5.64599]
[1743766648599,0.1294203,1771.6,1771.5,5.64493]
[1743766648802,4.0806503,1771.6,1771.1,5.64597]
[1743766648999,3.0,1771.5,1771.1,5.64597]
[1743766649183,3.12980298,1771.5,1771.1,5.64597]
[1743766649393,0.12980298,1771.5,1771.3,5.64552]
[1743766649588,0.12980298,1771.5,1771.2,11.34800498]
[1743766649822,8.60909,1771.7,1771.1,14.960406]
[1743766650037,0.13129947,1771.4,1771.1,9.314256]
[1743766650325,0.13077373,1771.3,1771.1,9.314256]
[1743766650523,3.95126,1771.6,1771.1,3.668246]
[1743766650702,0.13058383,1771.2,1771.0,31.03642]
[1743766650902,3.95123,1771.6,1771.0,25.39]
[1743766651226,7.90262,1771.6,1771.1,0.05645624]
[1743766651603,14.6774132,1771.7,1771.2,5.64586]
[1743766651927,18.6285232,1771.7,1771.3,0.05644986]
[1743766652224,10.0195132,1771.7,1771.3,5.70197986]
[1743766652397,3.2645132,1771.7,1771.3,6.27221085]
[1743766652595,3.2645132,1771.7,1771.4,1.6577]
[1743766652828,3.95079,1771.8,1771.4,1.6577]
[1743766653324,3.2645132,1771.9,1771.4,7.30292]
[1743766653510,3.2645132,1771.9,1771.6,5.64443]
[1743766654230,3.2645132,1771.9,1771.5,6.375122]
[1743766654431,6.2645132,1772.2,1771.4,1.6577]
[1743766654728,3.95079,1771.8,1771.4,1.6577]
[1743766654929,10.69262,1771.9,1771.4,13.00443636]
[1743766655131,6.742,1771.9,1771.5,5.64481]
[1743766655334,10.6926,1771.9,1771.4,7.30294]
[1743766655524,3.9506,1771.9,1771.4,12.948]
[1743766655707,6.2645132,1772.2,1771.5,5.64463]
[1743766655909,3.95023,1772.1,1771.5,5.64493]
[1743766656235,3.95023,1772.1,1771.6,5.64457]
[1743766656439,7.90092,1772.0,1771.5,5.64493]
[1743766656616,12.9985132,1772.2,1771.4,1.6577]
[1743766656617,3.951,1771.8,1771.4,1.6577]
[1743766656824,3.95102,1771.7,1771.4,1.6577]
[1743766657138,7.90192,1771.8,1771.4,1.6577]
[1743766657310,4.50026,1772.1,1771.5,5.6449]
[1743766657509,3.95087,1771.8,1771.4,1.6577]
[1743766657696,3.95087,1771.8,1771.4,7.30291]
[1743766657897,3.95113,1771.7,1771.4,1.6577]
[1743766658093,0.55,1772.1,1771.5,0.05644637]
[1743766658333,3.0,1771.9,1771.6,5.6445]
[1743766658537,3.0,1771.9,1771.5,5.64481]
[1743766658701,6.95065,1771.9,1771.4,7.30278]
[1743766658896,6.95065,1771.9,1771.5,5.64492]
[1743766659093,3.0,1771.9,1771.5,5.64492]
[1743766659412,3.0,1771.9,1771.6,11.28895]
[1743766659728,13.9355232,1772.2,1771.7,5.64419]
[1743766659912,9.9855132,1772.2,1771.6,5.64442]
[1743766660095,3.9505,1772.0,1771.5,5.64479]
[1743766660337,3.95059,1771.9,1771.5,5.7012319]
[1743766660498,3.95059,1771.9,1771.5,5.64479]
[1743766660696,3.951,1771.7,1771.2,1.6362]
[1743766660962,0.55,1771.7,1771.2,1.6362]
[1743766661105,3.2645132,1771.9,1771.7,5.64427]
[1743766661306,3.2645132,1772.1,1771.8,5.64367]
[1743766661643,3.2645132,1772.1,1771.7,5.64416]
[1743766661842,3.39086253,1772.1,1771.9,5.64347]
[1743766662143,0.12634933,1772.1,1771.9,11.28694]
[1743766662317,0.12634933,1772.1,1772.0,5.64334]
[1743766662513,3.2645132,1772.3,1772.1,5.64298]
[1743766662709,6.738,1772.7,1772.1,5.64302]
[1743766663017,10.68681,1772.7,1772.2,5.64247]
[1743766663216,6.738,1772.7,1772.1,7.24508]
[1743766663412,3.2645132,1772.8,1772.5,5.64158]
[1743766663740,3.38473,1772.7,1772.3,5.64235]
[1743766663907,0.13216712,1772.7,1772.3,5.64235]
[1743766664233,3.38512,1772.5,1772.0,5.6433]
[1743766664625,0.13027706,1772.4,1772.0,11.28648]
[1743766664822,0.13027706,1772.4,1772.1,5.643]
[1743766665228,3.38508,1772.5,1772.1,5.643]
[1743766665546,3.38529,1772.4,1772.0,5.64331]
[1743766665753,3.51556706,1772.4,1772.0,5.64331]
[1743766665955,0.13027706,1772.4,1772.2,5.64266]
[1743766666105,0.13027706,1772.4,1772.3,5.64238]
[1743766666423,0.13027706,1772.4,1772.3,5.69879705]
[1743766666609,3.2645132,1772.7,1772.5,5.64155]
[1743766667000,3.2645132,1772.7,1772.6,5.64143]
[1743766667200,0.05,1772.9,1772.7,5.641]
[1743766667406,0.05,1772.9,1772.6,5.64138]
[1743766667709,3.43429,1772.9,1772.5,5.64153]
[1743766668037,0.05,1772.9,1772.7,5.64108]
[1743766668240,0.05,1772.9,1772.6,11.28266]
[1743766668548,0.05,1772.9,1772.6,5.64126]
[1743766668962,0.05,1772.9,1772.5,5.64163]
[1743766669268,1.5855,1772.8,1772.2,1.638]
[1743766669472,0.05,1772.9,1772.6,5.64127]
[1743766669639,0.05,1772.9,1772.7,11.2821]
[1743766669841,0.05,1772.9,1772.7,5.64099]
[1743766670043,0.05,1772.9,1772.8,5.64079]
[1743766670271,0.05,1772.9,1772.7,5.64095]
[1743766670567,0.05,1772.9,1772.6,5.64123]
[1743766670773,0.05,1772.9,1772.6,11.28251]
[1743766671268,0.05,1772.9,1772.7,5.64109]
[1743766671472,0.05,1772.9,1772.6,5.64123]
[1743766672241,0.05,1772.9,1772.5,5.64156]
[1743766672572,0.05,1772.9,1772.6,5.6413]
[1743766673161,0.05,1772.9,1772.4,7.20343]
[1743766673359,0.05,1772.9,1772.4,5.64195]
[1743766673542,0.05,1772.9,1772.6,5.64122]